[Event "Schack-SM 2024: Mastarklassen-elit"]
[Site "Fortnox Arena, Hejaregatan 5, Vaxjo, Sweden"]
[Date "2024.07.02"]
[Round "4.4"]
[White "Arman, Deniz"]
[Black "Akesson, Ralf"]
[Result "1/2-1/2"]
[TimeControl "90 minutes for 40 moves + 30 minutes for the rest of the game + 30 seconds per move from move one."]
[WhiteTitle "FM"]
[BlackTitle "GM"]
[WhiteElo "2343"]
[BlackElo "2360"]

1. e4 {[%clk 01:29:28]} {[%emt 00:01:11]} c6 {[%clk 01:29:39]} {[%emt
00:01:41]} 2. d4 {[%clk 01:29:31]} {[%emt 00:00:26]} d5 {[%clk 01:29:41]}
{[%emt 00:00:29]} 3. e5 {[%clk 01:28:15]} {[%emt 00:01:47]} c5 {[%clk
01:29:37]} {[%emt 00:00:33]} 4. dxc5 {[%clk 01:28:07]} {[%emt 00:00:39]} e6
{[%clk 01:29:19]} {[%emt 00:00:47]} 5. a3 {[%clk 01:27:32]} {[%emt 00:01:07]}
Bxc5 {[%clk 01:29:04]} {[%emt 00:00:44]} 6. Nf3 {[%clk 01:26:59]} {[%emt
00:01:02]} Ne7 {[%clk 01:25:45]} {[%emt 00:03:49]} 7. b4 {[%clk 01:26:07]}
{[%emt 00:01:22]} Bb6 {[%clk 01:26:05]} {[%emt 00:00:11]} 8. Bd3 {[%clk
01:26:29]} {[%emt 00:00:08]} Nbc6 {[%clk 01:17:02]} {[%emt 00:09:36]} 9. O-O
{[%clk 01:21:23]} {[%emt 00:05:32]} Ng6 {[%clk 01:12:24]} {[%emt 00:05:07]} 10.
Bb2 {[%clk 01:18:52]} {[%emt 00:03:03]} Nf4 {[%clk 01:08:51]} {[%emt 00:04:01]}
11. c4 {[%clk 01:16:41]} {[%emt 00:02:43]} dxc4 {[%clk 00:47:33]} {[%emt
00:21:48]} 12. Bxc4 {[%clk 01:16:38]} {[%emt 00:00:33]} Qxd1 {[%clk 00:46:46]}
{[%emt 00:01:17]} 13. Rxd1 {[%clk 01:17:03]} {[%emt 00:00:04]} Bd7 {[%clk
00:44:17]} {[%emt 00:02:59]} 14. Nc3 {[%clk 01:15:47]} {[%emt 00:01:47]} Ne7
{[%clk 00:42:16]} {[%emt 00:02:31]} 15. Nb5 {[%clk 00:40:55]} {[%emt 00:35:23]}
Bc6 {[%clk 00:28:02]} {[%emt 00:14:43]} 16. Nd6+ {[%clk 00:33:11]} {[%emt
00:08:15]} Kf8 {[%clk 00:28:23]} {[%emt 00:00:07]} 17. Ng5 {[%clk 00:29:46]}
{[%emt 00:03:56]} h6 {[%clk 00:26:09]} {[%emt 00:02:43]} 18. Ngxf7 {[%clk
00:26:01]} {[%emt 00:04:16]} Rh7 {[%clk 00:25:46]} {[%emt 00:00:53]} 19. Bc1
{[%clk 00:11:36]} {[%emt 00:14:56]} g5 {[%clk 00:24:49]} {[%emt 00:01:25]} 20.
Bxf4 {[%clk 00:02:50]} {[%emt 00:09:16]} gxf4 {[%clk 00:25:11]} {[%emt
00:00:08]} 21. Bxe6 {[%clk 00:02:34]} {[%emt 00:00:47]} Rg7 {[%clk 00:24:58]}
{[%emt 00:00:43]} 22. g3 {[%clk 00:00:59]} {[%emt 00:02:05]} fxg3 {[%clk
00:24:52]} {[%emt 00:00:37]} 23. hxg3 {[%clk 00:01:27]} {[%emt 00:00:02]} Rxg3+
{[%clk 00:24:51]} {[%emt 00:00:31]} 24. Kf1 {[%clk 00:01:36]} {[%emt 00:00:20]}
Rg2 {[%clk 00:20:45]} {[%emt 00:04:36]} 25. Ra2 {[%clk 00:02:02]} {[%emt
00:00:05]} Rh2 {[%clk 00:14:04]} {[%emt 00:07:09]} 26. f4 {[%clk 00:02:25]}
{[%emt 00:00:09]} Rh4 {[%clk 00:14:17]} {[%emt 00:00:17]} 27. f5 {[%clk
00:01:39]} {[%emt 00:01:16]} Bf3 {[%clk 00:14:28]} {[%emt 00:00:17]} 28. Ke1
{[%clk 00:00:44]} {[%emt 00:01:27]} Be3 {[%clk 00:13:19]} {[%emt 00:01:40]} 29.
Bc4 {[%clk 00:00:37]} {[%emt 00:00:37]} Rh1+ {[%clk 00:13:08]} {[%emt
00:00:40]} 30. Bf1 {[%clk 00:01:04]} {[%emt 00:00:03]} Bxd1 {[%clk 00:13:25]}
{[%emt 00:00:13]} 31. f6 {[%clk 00:00:42]} {[%emt 00:00:53]} Nd5 {[%clk
00:11:28]} {[%emt 00:02:25]} 32. Rg2 {[%clk 00:00:47]} {[%emt 00:00:26]} Nf4
{[%clk 00:05:14]} {[%emt 00:06:44]} 33. Rg3 {[%clk 00:00:41]} {[%emt 00:00:37]}
Be2 {[%clk 00:05:21]} {[%emt 00:00:23]} 34. Rxe3 {[%clk 00:00:52]} {[%emt
00:00:19]} Bxf1 {[%clk 00:04:32]} {[%emt 00:01:18]} 35. Kf2 {[%clk 00:00:38]}
{[%emt 00:00:44]} Ne6 {[%clk 00:03:26]} {[%emt 00:01:36]} 36. Rg3 {[%clk
00:00:50]} {[%emt 00:00:18]} a5 {[%clk 00:02:51]} {[%emt 00:01:05]} 37. Nh8
{[%clk 00:00:59]} {[%emt 00:00:21]} axb4 {[%clk 00:02:11]} {[%emt 00:01:10]} 38.
Ng6+ {[%clk 00:00:50]} {[%emt 00:00:39]} Kg8 {[%clk 00:02:35]} {[%emt
00:00:05]} 39. Nf4+ {[%clk 00:00:41]} {[%emt 00:00:40]} Ng5 {[%clk 00:02:54]}
{[%emt 00:00:11]} 40. e6 {[%clk 00:00:45]} {[%emt 00:00:26]} Kh7 {[%clk
00:00:37]} {[%emt 00:02:47]} 41. e7 {[%clk 00:23:32]} {[%emt 00:07:43]} Rh4
{[%clk 00:08:45]} {[%emt 00:22:22]} 42. Nd5 {[%clk 00:20:55]} {[%emt 00:03:07]}
Bc4 {[%clk 00:08:03]} {[%emt 00:01:12]} 43. Rxg5 {[%clk 00:06:43]} {[%emt
00:14:42]} hxg5 {[%clk 00:05:42]} {[%emt 00:02:51]} 44. f7 {[%clk 00:06:05]}
{[%emt 00:01:08]} Rf4+ {[%clk 00:04:58]} {[%emt 00:01:14]} 45. Nxf4 {[%clk
00:05:35]} {[%emt 00:01:00]} Bxf7 {[%clk 00:05:20]} {[%emt 00:00:07]} 46. Nxf7
{[%clk 00:05:43]} {[%emt 00:00:24]} Re8 {[%clk 00:03:54]} {[%emt 00:01:55]} 47.
Nxg5+ {[%clk 00:05:38]} {[%emt 00:00:35]} Kh6 {[%clk 00:03:51]} {[%emt
00:00:33]} 48. Nf7+ {[%clk 00:05:22]} {[%emt 00:00:46]} Kg7 {[%clk 00:03:55]}
{[%emt 00:00:26]} 49. Nd6 {[%clk 00:04:32]} {[%emt 00:01:20]} Rxe7 {[%emt
00:02:09]} 50. axb4 {[%clk 00:04:06]} Re5 {[%clk 00:02:35]} {[%emt 00:01:06]}
51. Kf3 {[%clk 00:03:09]} {[%emt 00:01:27]} Re1 {[%clk 00:02:33]} {[%emt
00:00:32]} 52. Nd5 {[%clk 00:02:23]} {[%emt 00:01:17]} b5 {[%clk 00:02:19]}
{[%emt 00:00:43]} 53. Nc3 {[%clk 00:02:16]} {[%emt 00:00:36]} Rc1 {[%clk
00:02:08]} {[%emt 00:00:43]} 54. Nd5 {[%clk 00:00:47]} {[%emt 00:01:58]} Re1
{[%clk 00:01:44]} {[%emt 00:00:54]} 55. Kf4 {[%clk 00:01:08]} {[%emt 00:00:10]}
Re2 {[%clk 00:01:28]} {[%emt 00:00:45]} 56. Kf5 {[%clk 00:01:19]} {[%emt
00:00:19]} Re1 {[%clk 00:01:54]} {[%emt 00:00:05]} 57. Ne4 {[%clk 00:01:15]}
{[%emt 00:00:34]} Rc1 {[%emt 00:02:32]} 58. Ng5 {[%clk 00:00:41]} {[%emt
00:00:02]} Rf1+ {[%clk 00:00:44]} {[%emt 00:00:40]} 59. Ke5 {[%emt 00:00:23]}
Rb1 {[%clk 00:00:59]} 60. Ne4 {[%clk 00:01:08]} {[%emt 00:00:24]} Rb2 {[%clk
00:01:20]} {[%emt 00:00:09]} 61. Nd6 {[%clk 00:00:51]} {[%emt 00:00:48]} Kg6
{[%clk 00:01:37]} {[%emt 00:00:12]} 62. Ke4 {[%clk 00:00:58]} {[%emt 00:00:23]}
Rb1 {[%clk 00:01:55]} {[%emt 00:00:12]} 63. Kd4 {[%clk 00:01:06]} {[%emt
00:00:22]} Kg7 {[%clk 00:02:10]} {[%emt 00:00:15]} 64. Kc3 {[%clk 00:00:43]}
{[%emt 00:00:53]} Rc1+ {[%clk 00:01:44]} {[%emt 00:00:56]} 65. Kd2 {[%clk
00:00:46]} {[%emt 00:00:27]} Rc6 {[%clk 00:01:29]} {[%emt 00:00:44]} 66. Nf5+
{[%clk 00:00:51]} {[%emt 00:00:27]} Kf7 {[%clk 00:01:50]} {[%emt 00:00:08]} 67.
Nfe3 {[%clk 00:00:52]} {[%emt 00:00:30]} Ke6 {[%clk 00:02:02]} {[%emt
00:00:16]} 68. Kd3 {[%clk 00:00:54]} {[%emt 00:00:28]} Ke5 {[%clk 00:01:55]}
{[%emt 00:00:37]} 69. Nc3 {[%clk 00:00:44]} {[%emt 00:00:41]} Rd6+ {[%clk
00:02:17]} {[%emt 00:00:08]} 70. Kc2 {[%clk 00:01:04]} {[%emt 00:00:10]} Rd4
{[%clk 00:02:35]} {[%emt 00:00:10]} 71. Kb3 {[%clk 00:01:07]} {[%emt 00:00:28]}
Rxb4+ {[%clk 00:01:33]} {[%emt 00:01:33]} 72. Kxb4 {[%clk 00:01:29]} {[%emt
00:00:07]} Kd4 {[%clk 00:01:59]} {[%emt 00:00:03]} 73. Ned5 {[%clk 00:00:57]}
{[%emt 00:01:02]} Kd3 {[%clk 00:02:09]} {[%emt 00:00:20]} 74. Na2 {[%clk
00:00:45]} {[%emt 00:00:42]} Kd4 {[%clk 00:02:34]} {[%emt 00:00:05]} 75. Nf4
{[%clk 00:00:58]} {[%emt 00:00:18]} Ke4 {[%clk 00:02:58]} {[%emt 00:00:05]} 76.
Ne2 {[%clk 00:01:22]} {[%emt 00:00:06]} Ke3 {[%clk 00:03:22]} {[%emt 00:00:07]}
77. Nec1 {[%clk 00:01:43]} {[%emt 00:00:09]} Kd4 {[%clk 00:03:46]} {[%emt
00:00:04]} 78. Nb3 {[%clk 00:02:07]} {[%emt 00:00:06]} Kd5 {[%clk 00:04:10]}
{[%emt 00:00:07]} 79. Nc3+ {[%clk 00:02:32]} {[%emt 00:00:06]} Ke5 {[%clk
00:04:35]} {[%emt 00:00:04]} 80. Kc5 {[%clk 00:01:28]} {[%emt 00:01:34]} b4
{[%clk 00:04:59]} {[%emt 00:00:06]} 81. Ne2 {[%clk 00:00:50]} {[%emt 00:01:08]}
Ke6 {[%clk 00:05:15]} {[%emt 00:00:14]} 82. Kd4 {[%clk 00:01:12]} {[%emt
00:00:09]} Kd6 {[%clk 00:05:39]} {[%emt 00:00:05]} 83. Nf4 {[%clk 00:01:36]}
{[%emt 00:00:05]} Ke7 {[%clk 00:06:00]} {[%emt 00:00:08]} 84. Ke5 {[%clk
00:02:03]} {[%emt 00:00:05]} Kf7 {[%clk 00:06:22]} {[%emt 00:00:08]} 85. Nd5
{[%clk 00:02:15]} {[%emt 00:00:17]} Kg6 {[%clk 00:06:45]} {[%emt 00:00:06]} 86.
Ne7+ {[%clk 00:02:19]} {[%emt 00:00:26]} Kg5 {[%clk 00:06:55]} {[%emt
00:00:21]} 87. Ke6 {[%clk 00:02:30]} {[%emt 00:00:19]} Kf4 {[%clk 00:07:15]}
{[%emt 00:00:10]} 88. Kf6 {[%clk 00:02:44]} {[%emt 00:00:16]} Ke4 {[%clk
00:07:27]} {[%emt 00:00:18]} 89. Nc6 {[%clk 00:02:29]} {[%emt 00:00:44]} Kd5
{[%clk 00:07:51]} {[%emt 00:00:07]} 90. Ncd4 {[%clk 00:02:48]} {[%emt
00:00:11]} Kd6 {[%clk 00:07:55]} {[%emt 00:00:27]} 91. Nc2 {[%clk 00:02:58]}
{[%emt 00:00:18]} Kd5 {[%clk 00:08:17]} {[%emt 00:00:08]} 92. Ncd4 {[%clk
00:02:37]} {[%emt 00:00:52]} Kd6 {[%clk 00:08:36]} {[%emt 00:00:10]} 93. Ne6
{[%clk 00:02:58]} {[%emt 00:00:09]} Kd5 {[%clk 00:08:59]} {[%emt 00:00:07]} 94.
Nec5 {[%clk 00:02:28]} {[%emt 00:01:00]} Kd6 {[%clk 00:09:13]} {[%emt
00:00:16]} 95. Na4 {[%clk 00:01:42]} {[%emt 00:01:17]} Kd5 {[%clk 00:09:32]}
{[%emt 00:00:10]} 96. Nb2 {[%clk 00:02:08]} {[%emt 00:00:04]} Kd6 {[%clk
00:09:55]} {[%emt 00:00:08]} 97. Kg5 {[%clk 00:01:22]} {[%emt 00:01:15]} Ke5
{[%clk 00:10:14]} {[%emt 00:00:12]} 98. Nd3+ {[%clk 00:01:30]} {[%emt
00:00:20]} Ke4 {[%clk 00:10:17]} {[%emt 00:00:28]} 99. Nf4 {[%clk 00:01:38]}
{[%emt 00:00:22]} Ke5 {[%clk 00:10:36]} {[%emt 00:00:11]} 100. Ne2 {[%clk
00:01:32]} {[%emt 00:00:35]} Ke4 {[%clk 00:10:46]} {[%emt 00:00:19]} 101. Kf6
{[%clk 00:01:59]} {[%emt 00:00:03]} Kd3 {[%clk 00:10:55]} {[%emt 00:00:22]} 102.
Ned4 {[%clk 00:02:15]} {[%emt 00:00:15]} Ke4 {[%clk 00:11:18]} {[%emt
00:00:06]} 103. Ke6 {[%clk 00:02:12]} {[%emt 00:00:34]} Kf4 {[%clk 00:11:36]}
{[%emt 00:00:10]} 104. Kd5 {[%clk 00:02:31]} {[%emt 00:00:12]} Kg5 {[%clk
00:11:16]} {[%emt 00:00:50]} 105. Ke5 {[%clk 00:02:54]} {[%emt 00:00:06]} Kg4
{[%clk 00:11:40]} {[%emt 00:00:06]} 106. Nf5 {[%clk 00:02:38]} {[%emt
00:00:47]} Kf3 {[%clk 00:11:17]} {[%emt 00:00:52]} 107. Nh6 {[%clk 00:02:36]}
{[%emt 00:00:33]} Ke3 {[%clk 00:11:17]} {[%emt 00:00:30]} 108. Ng4+ {[%clk
00:02:56]} {[%emt 00:00:10]} Kf3 {[%clk 00:11:35]} {[%emt 00:00:12]} 109. Kf5
{[%clk 00:03:19]} {[%emt 00:00:07]} Kg3 {[%clk 00:11:36]} {[%emt 00:00:30]} 110.
Ne5 {[%clk 00:03:43]} {[%emt 00:00:06]} Kh4 {[%clk 00:11:30]} {[%emt 00:00:35]}
111. Kg6 {[%clk 00:03:43]} {[%emt 00:00:30]} Kh3 {[%clk 00:11:26]} {[%emt
00:00:36]} 112. Kh5 {[%clk 00:03:59]} {[%emt 00:00:14]} Kg3 {[%clk 00:11:30]}
{[%emt 00:00:25]} 113. Kg5 {[%clk 00:04:25]} {[%emt 00:00:02]} Kh3 {[%clk
00:11:17]} {[%emt 00:00:43]} 114. Ng6 {[%clk 00:04:39]} {[%emt 00:00:16]} Kg3
{[%clk 00:11:41]} {[%emt 00:00:07]} 115. Nh4 {[%clk 00:04:59]} {[%emt
00:00:09]} Kf2 {[%clk 00:11:52]} {[%emt 00:00:19]} 116. Kf4 {[%clk 00:05:25]}
{[%emt 00:00:04]} Ke2 {[%clk 00:12:16]} {[%emt 00:00:06]} 117. Ke4 {[%clk
00:05:43]} {[%emt 00:00:13]} Kf2 {[%clk 00:12:33]} {[%emt 00:00:11]} 118. Nf5
{[%clk 00:05:53]} {[%emt 00:00:21]} Ke2 {[%clk 00:12:52]} {[%emt 00:00:10]} 119.
Kf4 {[%clk 00:02:32]} {[%emt 00:03:52]} Kd3 {[%clk 00:13:03]} {[%emt 00:00:18]}
120. Nfd4 {[%clk 00:02:56]} {[%emt 00:00:06]} Kc4 {[%clk 00:13:06]} {[%emt
00:00:28]} 121. Ke5 {[%clk 00:02:52]} {[%emt 00:00:33]} Kd3 {[%clk 00:13:19]}
{[%emt 00:00:17]} 122. Nc6 {[%clk 00:02:53]} {[%emt 00:00:29]} Kc4 {[%clk
00:13:35]} {[%emt 00:00:13]} 123. Nca5+ {[%clk 00:03:16]} {[%emt 00:00:08]} Kd3
{[%clk 00:13:56]} {[%emt 00:00:09]} 124. Kf4 {[%clk 00:03:43]} {[%emt
00:00:03]} Ke2 {[%clk 00:14:16]} {[%emt 00:00:10]} 125. Nc5 {[%clk 00:03:52]}
{[%emt 00:00:21]} b3 {[%clk 00:14:37]} {[%emt 00:00:08]} 126. Ncxb3 {[%clk
00:04:18]} {[%emt 00:00:05]} 1/2-1/2

[Event "Schack-SM 2024: Mastarklassen-elit"]
[Site "Fortnox Arena, Hejaregatan 5, Vaxjo, Sweden"]
[Date "2024.07.02"]
[Round "4.5"]
[White "Carlsson, Ludvig"]
[Black "Olsson, William"]
[Result "1/2-1/2"]
[TimeControl "90 minutes for 40 moves + 30 minutes for the rest of the game + 30 seconds per move from move one."]
[WhiteTitle "IM"]
[BlackTitle "IM"]
[WhiteElo "2335"]
[BlackElo "2363"]

1. e4 {[%clk 01:30:56]} {[%emt 00:00:03]} e5 {[%clk 01:30:56]} {[%emt
00:00:06]} 2. Nf3 {[%clk 01:31:13]} {[%emt 00:00:13]} Nc6 {[%clk 01:31:20]}
{[%emt 00:00:06]} 3. Bb5 {[%clk 01:31:37]} {[%emt 00:00:07]} a6 {[%clk
01:31:43]} {[%emt 00:00:08]} 4. Ba4 {[%clk 01:32:02]} {[%emt 00:00:03]} Nf6
{[%clk 01:32:06]} {[%emt 00:00:07]} 5. d4 {[%clk 01:32:26]} {[%emt 00:00:06]}
exd4 {[%clk 01:21:07]} {[%emt 00:11:29]} 6. O-O {[%clk 01:32:47]} {[%emt
00:00:08]} Be7 {[%clk 01:15:10]} {[%emt 00:06:28]} 7. e5 {[%clk 01:33:08]}
{[%emt 00:00:08]} Ne4 {[%clk 01:11:11]} {[%emt 00:04:31]} 8. Nxd4 {[%clk
01:33:30]} {[%emt 00:00:08]} Nxd4 {[%clk 01:09:09]} {[%emt 00:02:32]} 9. Qxd4
{[%clk 01:33:50]} {[%emt 00:00:10]} Nc5 {[%clk 01:09:36]} {[%emt 00:00:03]} 10.
Nc3 {[%clk 01:34:08]} {[%emt 00:00:13]} O-O {[%clk 01:02:25]} {[%emt 00:07:42]}
11. Bb3 {[%clk 01:34:32]} {[%emt 00:00:05]} Nxb3 {[%clk 01:02:15]} {[%emt
00:00:40]} 12. cxb3 {[%clk 01:34:56]} {[%emt 00:00:06]} d6 {[%clk 00:59:21]}
{[%emt 00:03:24]} 13. Bf4 {[%clk 01:35:19]} {[%emt 00:00:07]} dxe5 {[%clk
00:59:02]} {[%emt 00:00:50]} 14. Qxe5 {[%clk 01:35:43]} {[%emt 00:00:06]} Bd6
{[%clk 00:57:30]} {[%emt 00:02:01]} 15. Qd4 {[%clk 01:36:06]} {[%emt 00:00:08]}
Bxf4 {[%clk 00:52:19]} {[%emt 00:05:40]} 16. Qxf4 {[%clk 01:36:28]} {[%emt
00:00:07]} Be6 {[%clk 00:44:21]} {[%emt 00:08:29]} 17. Rfe1 {[%clk 01:36:56]}
{[%emt 00:00:02]} c6 {[%clk 00:43:42]} {[%emt 00:01:09]} 18. Na4 {[%clk
01:37:20]} {[%emt 00:00:06]} Bd5 {[%clk 00:41:44]} {[%emt 00:02:29]} 19. Nc5
{[%clk 01:34:28]} {[%emt 00:03:22]} b6 {[%clk 00:41:13]} {[%emt 00:01:02]} 20.
Na4 {[%clk 01:34:56]} {[%emt 00:00:02]} b5 {[%clk 00:40:55]} {[%emt 00:00:47]}
21. Nc3 {[%clk 01:35:19]} {[%emt 00:00:06]} Re8 {[%clk 00:40:20]} {[%emt
00:01:05]} 22. h4 {[%clk 01:24:38]} {[%emt 00:11:12]} h6 {[%clk 00:36:57]}
{[%emt 00:03:55]} 23. Rad1 {[%clk 01:22:20]} {[%emt 00:02:46]} Qd7 {[%clk
00:35:08]} {[%emt 00:02:19]} 24. b4 {[%clk 01:11:49]} {[%emt 00:11:00]} Rxe1+
{[%clk 00:33:14]} {[%emt 00:02:25]} 25. Rxe1 {[%clk 01:12:13]} {[%emt
00:00:06]} Re8 {[%clk 00:33:28]} {[%emt 00:00:16]} 26. Rxe8+ {[%clk 01:10:39]}
{[%emt 00:02:05]} Qxe8 {[%clk 00:33:49]} {[%emt 00:00:08]} 27. Qe3 {[%clk
01:11:04]} {[%emt 00:00:05]} Qd8 {[%clk 00:32:14]} {[%emt 00:02:04]} 28. g3
{[%clk 01:10:15]} {[%emt 00:01:18]} Qd7 {[%clk 00:26:35]} {[%emt 00:06:10]} 29.
a3 {[%clk 00:56:15]} {[%emt 00:14:30]} Qf5 {[%clk 00:25:18]} {[%emt 00:01:45]}
30. Qf4 {[%clk 00:41:31]} {[%emt 00:15:14]} Qh3 {[%clk 00:22:34]} {[%emt
00:03:15]} 31. Nxd5 {[%clk 00:38:54]} {[%emt 00:03:06]} cxd5 {[%clk 00:23:03]}
{[%emt 00:00:03]} 32. b3 {[%clk 00:38:20]} {[%emt 00:01:03]} Qe6 {[%clk
00:22:57]} {[%emt 00:00:36]} 33. a4 {[%clk 00:38:38]} {[%emt 00:00:13]} Kh7
{[%clk 00:16:43]} {[%emt 00:06:43]} 34. Qf3 {[%clk 00:37:10]} {[%emt 00:01:58]}
Kg8 {[%clk 00:16:35]} {[%emt 00:00:40]} 35. Qf4 {[%clk 00:37:03]} {[%emt
00:00:35]} Kh7 {[%clk 00:16:44]} {[%emt 00:00:22]} 36. Qf3 {[%clk 00:37:28]}
{[%emt 00:00:05]} Qd7 {[%clk 00:14:09]} {[%emt 00:03:06]} 37. Kf1 {[%clk
00:36:42]} {[%emt 00:01:14]} d4 {[%clk 00:11:45]} {[%emt 00:02:55]} 38. Ke2
{[%clk 00:36:12]} {[%emt 00:00:59]} Qe7+ {[%clk 00:10:05]} {[%emt 00:02:11]} 39.
Kd3 {[%clk 00:36:18]} {[%emt 00:00:24]} Qxb4 {[%clk 00:09:02]} 1/2-1/2